fUST/lending_fUST_20260402
["ID","MTS","AMOUNT","RATE_DAILY","PERIOD"]
[419260497,1775073039639,-200.0,0.00024899,2]
[419260498,1775073039648,-500.0,0.00024899,2]
[419260499,1775073039658,-500.0,0.00024899,2]
[419260500,1775073039668,-500.0,0.00024899,2]
[419260501,1775073039677,-500.0,0.00024899,2]
[419260502,1775073039687,-519.43135939,0.00024899,2]
[419260503,1775073039696,-225.6372934,0.00024899,2]
[419260504,1775073039706,-274768.797783,0.000249,2]
[419260505,1775073039715,-780.27,0.000249,2]
[419260506,1775073039725,-780.27,0.000249,2]
[419260507,1775073039735,-780.27,0.000249,2]
[419260508,1775073039744,-780.27,0.000249,2]
[419260509,1775073039754,-1469.23,0.000249,2]
[419260510,1775073039764,-2982.60894464,0.00024906,2]
[419260511,1775073039773,-196.2713615,0.00024913,2]
[419260512,1775073039783,-151.0,0.00024913,2]
[419260513,1775073039792,-455.1794191,0.00024913,2]
[419260514,1775073039801,-324.9282386,0.00024913,2]
[419260515,1775073039811,-430.039793,0.00024913,2]
[419260516,1775073039821,-324.9282386,0.00024913,2]
[419260517,1775073039832,-455.1794191,0.00024913,2]
[419260518,1775073039841,-196.1336995,0.00024913,2]
[419260519,1775073039851,-196.2501007,0.00024913,2]
[419260520,1775073039861,-235.77755534,0.00024918,2]
[419260521,1775073039874,-158.0,0.00025,2]
[419260522,1775073039884,-243.0,0.00025,2]
[419260523,1775073039893,-27849.87701582,0.00025001,2]
[419260524,1775073039907,-157105.58736397,0.00025001,2]
[419260525,1775073039916,-197.70636818,0.00025086,2]
[419260526,1775073039925,-668.65185757,0.00025086,2]
[419260527,1775073039935,-200.0,0.00025112,2]
[419260528,1775073039945,-228.62,0.00025113,2]
[419260529,1775073039954,-176.434,0.00025114,2]
[419260530,1775073039964,-151.35,0.00025114,2]
[419260531,1775073039974,-200.0,0.00025114,2]
[419260532,1775073039984,-39252.6853976,0.00025163,2]
[419260533,1775073039994,-500.0,0.00025173,2]
[419260534,1775073040003,-500.0,0.00025173,2]
[419260535,1775073040013,-500.0,0.00025173,2]
[419260536,1775073040022,-219.89766725,0.00025173,2]
[419260537,1775073040032,-500.0,0.00025173,2]
[419260538,1775073040042,-86.82854905,0.00025173,2]
[419260539,1775073040054,-413.17145095,0.00025173,2]
[419260540,1775073040063,-644.57642108,0.00025173,2]
[419260541,1775073040073,-500.18906294,0.00025173,2]
[419260542,1775073040082,-500.0,0.00025173,2]
[419260543,1775073040092,-500.0,0.00025173,2]
[419260544,1775073040101,-322.22533577,0.00025173,2]
[419260545,1775073040109,-500.0,0.00025173,2]
[419260546,1775073040118,-500.0,0.00025173,2]
[419260547,1775073040126,-500.0,0.00025173,2]
[419260548,1775073040135,-500.0,0.00025173,2]
[419260549,1775073040145,-326.17142517,0.00025173,2]
[419260550,1775073040155,-2735.75356346,0.000253,2]
[419260551,1775073040165,-2735.75356344,0.000253,2]
[419260552,1775073040175,-2735.75356344,0.000253,2]
[419260553,1775073040185,-2735.75356344,0.00025334,2]
[419260554,1775073040196,-29083.32545802,0.00025367,2]
[419260726,1775073043909,-188.218,0.00024812,2]
[419260727,1775073043919,-4655.94648785,0.00025367,2]
[419260728,1775073043932,-5513.41345173,0.00025367,2]
[419260729,1775073043942,-500.0,0.00025373,2]
[419260730,1775073043952,-2826.3454447,0.00025377,2]
[419260731,1775073043963,-566.2861678,0.00025377,2]
[419260732,1775073043972,-10273.35871056,0.00025377,2]
[419260741,1775073046974,-530.0,0.00024564,2]
[419260769,1775073517751,-253.35553,0.00036325,60]
[419260770,1775073517776,-3000.0,0.00036325,120]
[419260771,1775073517800,-284.54340821,0.00036325,30]
[419260772,1775073517824,-500.0,0.00036325,120]
[419260773,1775073517849,-437.94769008,0.00036325,120]
[419260774,1775073517874,-571.52791396,0.00036325,30]
[419260775,1775073517899,-283.12684958,0.00036325,30]
[419260776,1775073517923,-320.93138393,0.00036325,30]
[419260777,1775073517947,-269.94183144,0.00036325,30]
[419260778,1775073517970,-159.35549647,0.00036325,36]
[419260779,1775073517993,-1185.91851749,0.00036325,30]
[419260780,1775073518018,-186.37233523,0.00036325,31]
[419260781,1775073518043,-151.86965573,0.00036325,120]
[419260782,1775073518067,-562.72837085,0.00036325,60]
[419260783,1775073518091,-475.559551,0.00036325,30]
[419260784,1775073518116,-507.07232599,0.00036325,30]
[419260785,1775073518140,-200.01476029,0.00036325,30]
[419260786,1775073518163,-350.94867286,0.00036325,30]
[419260787,1775073518187,-1000.0,0.00036325,60]
[419260788,1775073518212,-916.46760934,0.00036325,30]
[419260789,1775073518236,-1311.33702913,0.00036325,120]
[419260790,1775073518260,-1543.67983602,0.00036325,38]
[419260791,1775073518283,-880.6,0.00036325,120]
[419260792,1775073518306,-184.43769008,0.00036325,120]
[419260793,1775073518329,-1600.0,0.00036325,120]
[419260794,1775073518468,-10005.07902138,0.00036325,45]
[419260795,1775073518492,-336.61976298,0.00036325,60]
[419260796,1775073518516,-3519.0,0.00036325,120]
[419260797,1775073518540,-499999.5,0.00036325,120]
[419260798,1775073518566,-10001.0,0.00036325,120]
[419260799,1775073518591,-46979.4351,0.00036325,120]
[419260800,1775073518620,-151.43666017,0.00036325,120]
[419260801,1775073518647,-151.43666017,0.00036325,120]
[419260802,1775073518672,-10000.0,0.00036325,21]
[419260803,1775073518697,-10000.0,0.00036325,28]
[419260804,1775073518722,-10746.0,0.00036325,35]
[419260805,1775073518747,-350808.28939946,0.00036325,30]
[419260806,1775073518772,-157.0,0.00036325,120]
[419260807,1775073518798,-122155.53883198,0.00036325,30]
[419260808,1775073518823,-80136.41,0.00036325,120]
[419260809,1775073518851,-154.18445276,0.00036325,120]
[419260810,1775073518876,-154.18445276,0.00036325,120]
[419260811,1775073518903,-154.18445276,0.00036325,120]
[419260812,1775073518928,-154.18445276,0.00036325,120]
[419260813,1775073518954,-154.18445276,0.00036325,120]
[419260814,1775073518980,-154.18445276,0.00036325,120]
[419260815,1775073519006,-154.18445276,0.00036325,120]
[419260816,1775073519032,-154.18445274,0.00036325,120]
[419260817,1775073519059,-514.87577865,0.00036325,120]
[419260818,1775073519087,-514.87577865,0.00036325,120]
[419260819,1775073519117,-514.87577865,0.00036325,120]
[419260820,1775073519146,-514.87577865,0.00036325,120]
[419260821,1775073519174,-514.87577865,0.00036325,120]
[419260822,1775073519201,-514.87577865,0.00036325,120]
[419260823,1775073519231,-514.87577865,0.00036325,120]
[419260824,1775073519260,-514.87577865,0.00036325,120]
[419260825,1775073519288,-514.87577865,0.00036325,120]
[419260826,1775073519317,-514.87577865,0.00036325,120]
[419260827,1775073519347,-514.87577865,0.00036325,120]
[419260828,1775073519375,-514.87577865,0.00036325,120]
[419260829,1775073519403,-514.87577865,0.00036325,120]
[419260830,1775073519431,-514.87577865,0.00036325,120]
[419260831,1775073519459,-171.62525953,0.00036325,120]
[419260832,1775073519486,-171.62525953,0.00036325,120]
[419260833,1775073519512,-171.62525953,0.00036325,120]
[419260834,1775073519537,-901.1390153,0.00036325,120]
[419260835,1775073519563,-251.1992028,0.00036325,120]
[419260836,1775073519589,-169.73926769,0.00036325,120]
[419260837,1775073519615,-169.73926769,0.00036325,120]
[419260838,1775073519643,-169.73926769,0.00036325,120]
[419260839,1775073519670,-169.73926769,0.00036325,120]
[419260840,1775073519711,-169.73926769,0.00036325,120]
[419260841,1775073519745,-169.73926769,0.00036325,120]
[419260842,1775073519776,-169.73926769,0.00036325,120]
[419260843,1775073519806,-500.0,0.00036325,30]
[419260844,1775073519834,-500.0,0.00036325,30]
[419260845,1775073519862,-500.0,0.00036325,30]
[419260846,1775073519897,-249.65,0.00036325,120]
[419260847,1775073519924,-409.0262544,0.00036325,120]
[419260848,1775073519953,-551.4673256,0.00036325,120]
[419260849,1775073520094,22171.03193731,0.00036325,20]
[419260850,1775073520126,966.0,0.00036325,20]
[419260851,1775073520156,1117.15321968,0.00036325,20]
[419260852,1775073538009,-495.26380886,0.000253,75]
[419260853,1775073538039,-153.45046923,0.00025566,30]
[419260854,1775073538069,-225.99006479,0.00025566,60]
[419260855,1775073538101,-302.87332039,0.00025566,60]
[419260856,1775073538130,-201.56439365,0.00025566,60]
[419260857,1775073538162,-3647.80151976,0.0002578,80]
[419260858,1775073538190,-153.45046923,0.00025852,60]
[419260859,1775073538219,-25490.69186644,0.00026717,30]
[419260860,1775073538249,-901.1390154,0.00027205,30]
[419260861,1775073538275,-409.0262545,0.00027205,30]
[419260862,1775073538303,-551.4673257,0.00027205,30]
[419260863,1775073538442,-163.11,0.00027291,30]
[419260864,1775073538475,-3662.27543683,0.00027438,95]
[419260865,1775073538503,-1044.05,0.00028,30]
[419260866,1775073538530,-1044.05,0.00028438,30]
[419260867,1775073538560,-720.0,0.00028547,30]
[419260868,1775073538587,-687.29,0.00028767,37]
[419260869,1775073538615,-1044.05,0.00028875,30]
[419260870,1775073538642,-1072.93743139,0.00029041,120]
[419260871,1775073538670,-158.0,0.00029172,30]
[419260872,1775073538697,-157.0,0.00029172,30]
[419260873,1775073538724,-155.0,0.0002918,30]
[419260874,1775073538753,-243.0,0.0002918,30]
[419260875,1775073538779,-152.0,0.0002918,30]
[419260876,1775073538805,-500.0,0.00029261,30]
[419260877,1775073538833,-500.0,0.00029261,30]
[419260878,1775073538860,-500.0,0.00029261,30]
[419260879,1775073538887,-500.0,0.00029261,30]
[419260880,1775073538914,-500.0,0.00029261,30]
[419260881,1775073538940,-500.0,0.00029261,30]
[419260882,1775073538967,-508.70800494,0.00029261,30]
[419260883,1775073538996,-1044.05,0.00029313,30]
[419260884,1775073539026,-1044.05,0.0002975,30]
[419260885,1775073539057,-158.0,0.00030172,30]
[419260886,1775073539085,-157.0,0.00030172,30]
[419260887,1775073539113,-155.0,0.0003018,30]
[419260888,1775073539141,-243.0,0.0003018,30]
[419260889,1775073539169,-152.0,0.0003018,30]
[419260890,1775073539197,-1044.05,0.00030188,30]
[419260891,1775073539228,-2562.91741072,0.00030364,112]
[419260892,1775073539257,-1044.05,0.00030625,30]
[419260893,1775073539288,-4787.0717741,0.00030754,112]
[419260894,1775073539317,-1044.05,0.00031063,30]
[419260895,1775073539344,-158.0,0.00031172,30]
[419260896,1775073539371,-157.0,0.00031172,30]
[419260897,1775073539398,-155.0,0.0003118,30]
[419260898,1775073539425,-243.0,0.0003118,30]
[419260899,1775073539451,-152.0,0.0003118,30]
[419260900,1775073539479,-1149.0,0.00031186,30]
[419260901,1775073539507,-5000.0,0.00031232,32]
[419260902,1775073539532,-5000.0,0.00031232,30]
[419260903,1775073539559,-5000.0,0.00031232,33]
[419260904,1775073539584,-450.0,0.00031232,30]
[419260905,1775073539611,-450.0,0.00031232,30]
[419260906,1775073539636,-447.0,0.00031232,30]
[419260907,1775073539663,-3618.0,0.00031232,30]
[419260908,1775073539688,-564.0,0.00031232,30]
[419260909,1775073539715,-1983.0,0.00031232,30]
[419260910,1775073539745,-864.0,0.00031402,30]
[419260911,1775073539774,-1044.05,0.000315,30]
[419260912,1775073539802,-1044.05,0.00031938,30]
[419260913,1775073539835,-3646.62847814,0.0003212,30]
[419260914,1775073539863,-158.0,0.00032172,30]
[419260915,1775073539891,-157.0,0.00032172,30]
[419260916,1775073539918,-155.0,0.0003218,30]
[419260917,1775073539946,-243.0,0.0003218,30]
[419260918,1775073539972,-152.0,0.0003218,30]
[419260919,1775073539998,-1044.05,0.00032375,120]
[419260920,1775073540027,-1333.0,0.00032401,30]
[419260921,1775073540055,-284.0,0.00032401,30]
[419260922,1775073540082,-3024.0,0.00032401,30]
[419260923,1775073540109,-279.0,0.00032401,30]
[419260924,1775073540137,-200.0,0.00032401,30]
[419260925,1775073540163,-177.0,0.00032401,30]
[419260926,1775073540191,-2623.0,0.00032547,30]
[419260927,1775073540219,-68645.0,0.000328,60]
[419260928,1775073540250,-1040.0,0.000328,60]
[419260929,1775073540281,-395.0,0.000328,60]
[419260930,1775073540310,-664.0,0.000328,60]
[419260931,1775073540339,-288.0,0.000328,60]
[419260932,1775073540367,-904.0,0.000328,60]
[419260933,1775073540395,-198.0,0.000328,60]
[419260934,1775073540422,-578.0,0.000328,60]
[419260935,1775073540449,-352.0,0.000328,60]
[419260936,1775073540477,-285.0,0.000328,60]
[419260937,1775073540503,-269.0,0.000328,60]
[419260938,1775073540531,-266.0,0.000328,60]
[419260939,1775073540559,-1033.0,0.000328,60]
[419260940,1775073540587,-633.0,0.000328,60]
[419260941,1775073540614,-235.0,0.000328,60]
[419260942,1775073540640,-162.22922117,0.000328,120]
[419260943,1775073540669,-276.0,0.000328,60]
[419260944,1775073540696,-211.0,0.000328,60]
[419260945,1775073540723,-1044.05,0.00032813,120]
[419260946,1775073540749,-213.41,0.00032818,30]
[419260947,1775073540777,-1626.0,0.00032833,120]
[419260948,1775073540806,-1134.0,0.00032833,120]
[419260949,1775073540834,-803.0,0.0003284,120]
[419260950,1775073540867,-759.0,0.0003284,120]
[419260951,1775073540896,-749.0,0.0003284,120]
[419260952,1775073540925,-1334.0,0.00032844,120]
[419260953,1775073540954,-1745.0,0.00032867,120]
[419260954,1775073540983,-1021.0,0.00032867,120]
[419260955,1775073541011,-247.19809888,0.0003287,120]
[419260956,1775073541038,-1593.0,0.00032876,30]
[419260957,1775073541066,-250.0,0.00032876,30]
[419260958,1775073541095,-159.0,0.00032876,30]
[419260959,1775073541124,-2231.0,0.00032876,30]
[419260960,1775073541153,-350.0,0.00032876,30]
[419260961,1775073541181,-223.0,0.00032876,30]
[419260962,1775073541210,-1908.0,0.00032876,30]
[419260963,1775073541239,-1799.0,0.00032876,30]
[419260964,1775073541269,-400.0,0.00032876,30]
[419260965,1775073541298,-344.0,0.00032876,30]
[419260966,1775073541327,-350.0,0.00032876,120]
[419260967,1775073541355,-350.0,0.00032876,120]
[419260968,1775073541383,-230.0,0.00032876,120]
[419260969,1775073541509,-1030.0,0.00032876,30]
[419260970,1775073541538,-308.0,0.00032876,30]
[419260971,1775073541569,-207.0,0.00032876,60]
[419260972,1775073541598,-2252.0,0.00032876,120]
[419260973,1775073541626,-268.0,0.00032876,30]
[419260974,1775073541653,-418.0,0.00032876,60]
[419260975,1775073541681,-3040.0,0.00032876,30]
[419260976,1775073541709,-450.0,0.00032876,30]
[419260977,1775073541739,-372.0,0.00032876,30]
[419260978,1775073541766,-500.0,0.00032876,120]
[419260979,1775073541794,-500.0,0.00032876,120]
[419260980,1775073541822,-500.0,0.00032876,120]
[419260981,1775073541850,-473.86373701,0.00032876,120]
[419260982,1775073541878,-500.0,0.00032876,120]
[419260983,1775073541906,-500.0,0.00032876,120]
[419260984,1775073541936,-309.28515837,0.00032876,120]
[419260985,1775073541965,-4166.66,0.00032876,120]
[419260986,1775073541992,-4166.66,0.00032876,120]
[419260987,1775073542020,-4166.66,0.00032876,120]
[419260988,1775073542048,-4166.66,0.00032876,120]
[419260989,1775073542076,-4166.66,0.00032876,120]
[419260990,1775073542107,-4166.66,0.00032876,120]
[419260991,1775073542136,-4166.66,0.00032876,120]
[419260992,1775073542163,-4166.66,0.00032876,120]
[419260993,1775073542192,-4166.66,0.00032876,120]
[419260994,1775073542222,-4166.66,0.00032876,120]
[419260995,1775073542250,-4166.66,0.00032876,120]
[419260996,1775073542278,-4166.66,0.00032876,120]
[419260997,1775073542306,-4166.66,0.00032876,120]
[419260998,1775073542332,-4166.66,0.00032876,120]
[419260999,1775073542360,-4166.66,0.00032876,120]
[419261000,1775073542388,-4166.66,0.00032876,120]
[419261001,1775073542415,-4166.66,0.00032876,120]
[419261002,1775073542442,-4166.66,0.00032876,120]
[419261003,1775073542469,-4166.66,0.00032876,120]
[419261004,1775073542497,-4166.66,0.00032876,120]
[419261005,1775073542523,-4166.66,0.00032876,120]
[419261006,1775073542549,-4166.66,0.00032876,120]
[419261007,1775073542575,-4166.66,0.00032876,120]
[419261008,1775073542601,-4166.82,0.00032876,120]
[419261009,1775073542628,-500.0,0.00032876,30]
[419261010,1775073542655,-500.0,0.00032876,30]
[419261011,1775073542681,-500.0,0.00032876,30]
[419261012,1775073542713,-500.0,0.00032876,30]
[419261013,1775073542741,-227.81455513,0.00032876,30]
[419261014,1775073542768,-219.40029584,0.00032876,30]
[419261015,1775073542796,-500.0,0.00032876,120]
[419261016,1775073542823,-500.0,0.00032876,120]
[419261017,1775073542855,-500.0,0.00032876,120]
[419261018,1775073542882,-500.0,0.00032876,120]
[419261019,1775073542909,-500.0,0.00032876,120]
[419261020,1775073542936,-500.0,0.00032876,120]
[419261021,1775073542964,-500.0,0.00032876,120]
[419261022,1775073542993,-500.0,0.00032876,120]
[419261023,1775073543021,-500.0,0.00032876,120]
[419261024,1775073543048,-503.16014628,0.00032876,120]
[419261025,1775073543074,-652.6,0.00032876,30]
[419261026,1775073543101,-652.6,0.00032876,30]
[419261027,1775073543127,-652.6,0.00032876,30]
[419261028,1775073543158,-652.6,0.00032876,30]
[419261029,1775073543188,-652.6,0.00032876,30]
[419261030,1775073543216,-652.6,0.00032876,30]
[419261031,1775073543243,-652.6,0.00032876,30]
[419261032,1775073543274,-652.6,0.00032876,30]
[419261033,1775073543301,-652.6,0.00032876,30]
[419261034,1775073543329,-652.6,0.00032876,30]
[419261035,1775073543356,-652.6,0.00032876,30]
[419261036,1775073543384,-652.6,0.00032876,30]
[419261037,1775073543412,-652.6,0.00032876,30]
[419261038,1775073543438,-652.6,0.00032876,30]
[419261039,1775073543467,-652.6,0.00032876,30]
[419261040,1775073543493,-652.6,0.00032876,30]
[419261041,1775073543518,-652.6,0.00032876,30]
[419261042,1775073543545,-652.6,0.00032876,30]
[419261043,1775073543571,-652.6,0.00032876,30]
[419261044,1775073543599,-652.6,0.00032876,30]
[419261045,1775073543627,-652.6,0.00032876,30]
[419261046,1775073543655,-652.6,0.00032876,30]
[419261047,1775073543684,-652.6,0.00032876,30]
[419261048,1775073543711,-652.79371549,0.00032876,30]
[419261049,1775073543739,-500.0,0.00032876,90]
[419261050,1775073543767,-500.0,0.00032876,90]
[419261051,1775073543795,-500.0,0.00032876,90]
[419261052,1775073543824,-500.0,0.00032876,90]
[419261053,1775073543852,-500.0,0.00032876,90]
[419261054,1775073543880,-500.0,0.00032876,90]
[419261055,1775073543907,-500.0,0.00032876,90]
[419261056,1775073543935,-500.0,0.00032876,90]
[419261057,1775073543966,-500.0,0.00032876,90]
[419261058,1775073543994,-500.0,0.00032876,90]
[419261059,1775073544021,-1295.83,0.00032876,120]
[419261060,1775073544049,-1295.83,0.00032876,120]
[419261061,1775073544077,-1295.83,0.00032876,120]
[419261062,1775073544103,-1295.83,0.00032876,120]
[419261063,1775073544131,-1295.83,0.00032876,120]
[419261064,1775073544158,-1295.83,0.00032876,120]
[419261065,1775073544185,-1295.83,0.00032876,120]
[419261066,1775073544212,-1295.83,0.00032876,120]
[419261067,1775073544239,-1295.83,0.00032876,120]
[419261068,1775073544267,-1295.83,0.00032876,120]
[419261069,1775073544293,-1295.83,0.00032876,120]
[419261070,1775073544411,-1295.83,0.00032876,120]
[419261071,1775073544439,-1295.83,0.00032876,120]
[419261072,1775073544466,-1295.83,0.00032876,120]
[419261073,1775073544492,-1295.83,0.00032876,120]
[419261074,1775073544519,-1295.83,0.00032876,120]
[419261075,1775073544545,-1295.83,0.00032876,120]
[419261076,1775073544572,-1295.83,0.00032876,120]
[419261077,1775073544599,-1295.83,0.00032876,120]
[419261078,1775073544626,-1295.83,0.00032876,120]
[419261079,1775073544653,-1295.83,0.00032876,120]
[419261080,1775073544679,-1295.83,0.00032876,120]
[419261081,1775073544706,-1295.83,0.00032876,120]
[419261082,1775073544733,-1295.91,0.00032876,120]
[419261083,1775073544760,-500.0,0.00032876,60]
[419261084,1775073544786,-500.0,0.00032876,60]
[419261085,1775073544812,-500.0,0.00032876,60]
[419261086,1775073544839,-500.0,0.00032876,60]
[419261087,1775073544865,-500.0,0.00032876,60]
[419261088,1775073544892,-561.43683936,0.00032876,60]
[419261089,1775073544921,-500.0,0.00032876,120]
[419261090,1775073544948,-500.0,0.00032876,120]
[419261091,1775073544975,-500.440194,0.00032876,120]
[419261092,1775073545003,-2883.0,0.00032877,120]
[419261093,1775073545030,-250.01,0.00032877,120]
[419261094,1775073545056,-250.0,0.00032877,120]
[419261095,1775073545083,-250.0,0.00032877,120]
[419261096,1775073545111,-250.0,0.00032877,120]
[419261097,1775073545139,-1000.0,0.000329,120]
[419261098,1775073545168,-1732.4,0.000329,120]
[419261099,1775073545197,-2361.0,0.000329,120]
[419261100,1775073545225,-700.0,0.000329,120]
[419261101,1775073545252,-633.0,0.000329,120]
[419261102,1775073545281,-265.99598296,0.00033,120]
[419261103,1775073545308,-696.25640768,0.00033,120]
[419261104,1775073545334,-187.75038369,0.00033,120]
[419261105,1775073545360,-1535.0,0.00033,120]
[419261106,1775073545387,-700.0,0.00033,120]
[419261107,1775073545415,-646.0,0.00033,120]
[419261108,1775073545443,-1898.0,0.00033,120]
[419261109,1775073545470,-2003.0,0.00033,120]
[419261110,1775073545498,-513.0,0.00033133,120]
[419261111,1775073545526,-1637.0,0.00033148,30]
[419261112,1775073545555,-250.0,0.00033148,30]
[419261113,1775073545583,-181.0,0.00033148,30]
[419261114,1775073545610,-1020.0,0.00033172,30]
[419261115,1775073545638,-380.0,0.00033172,30]
[419261116,1775073545667,-158.0,0.00033172,30]
[419261117,1775073545694,-157.0,0.00033172,30]
[419261118,1775073545721,-155.0,0.0003318,30]
[419261119,1775073545753,-243.0,0.0003318,30]
[419261120,1775073545787,-152.0,0.0003318,30]
[419261121,1775073545822,-2959.0,0.0003318,30]
[419261122,1775073545853,-558.0,0.0003318,30]
[419261123,1775073545885,-1000.0,0.000332,120]
[419261124,1775073545919,-1817.0,0.000332,120]
[419261125,1775073545955,-671.0,0.000332,120]
[419261126,1775073545989,-520.48731332,0.000332,117]
[419261127,1775073546023,-520.4873133,0.000332,117]
[419261128,1775073546058,-520.4873133,0.000332,117]
[419261129,1775073546092,-520.4873133,0.000332,117]
[419261130,1775073546125,-520.4873133,0.000332,117]
[419261131,1775073546157,-1044.05,0.0003325,120]
[419261132,1775073546188,-1000.0,0.000335,120]
[419261133,1775073546220,-250.0,0.000335,120]
[419261134,1775073546251,-194.0,0.000335,120]
[419261135,1775073546286,-513.0,0.000335,120]
[419261136,1775073546319,-250.0,0.00033513,30]
[419261137,1775073546352,-868.0,0.00033513,30]
[419261138,1775073546386,-345.0,0.00033513,30]
[419261139,1775073546419,-1021.0,0.00033513,30]
[419261140,1775073546453,-380.0,0.00033513,30]
[419261141,1775073546484,-245.0,0.00033513,30]
[419261142,1775073546514,-162.48,0.0003361,60]
[419261143,1775073546547,-174.55,0.0003361,60]
[419261144,1775073546579,-404.43,0.0003361,60]
[419261145,1775073546610,-1257.0,0.0003361,60]
[419261146,1775073546650,-244.0,0.0003361,60]
[419261147,1775073546684,-1231.0,0.0003361,60]
[419261148,1775073546719,-351.0,0.0003361,60]
[419261149,1775073546750,-3426.0,0.0003361,60]
[419261150,1775073546781,-500.0,0.0003361,60]
[419261151,1775073546811,-436.0,0.0003361,60]
[419261152,1775073546840,-1044.05,0.00033688,120]
[419261153,1775073546872,-162.48,0.0003371,60]
[419261154,1775073546902,-174.55,0.0003371,60]
[419261155,1775073546936,-404.43,0.0003371,60]
[419261156,1775073546966,-4773.0,0.0003371,60]
[419261157,1775073546995,-1000.0,0.000338,120]
[419261158,1775073547025,-162.22922117,0.000338,120]
[419261159,1775073547056,-420.0,0.000338,120]
[419261160,1775073547086,-162.48,0.0003381,60]
[419261161,1775073547117,-174.55,0.0003381,60]
[419261162,1775073547151,-404.43,0.0003381,60]
[419261163,1775073547183,-831.0,0.0003381,60]
[419261164,1775073547214,-315.0,0.0003381,60]
[419261165,1775073547246,-1732.4,0.000339,120]
[419261166,1775073547278,-1401.0,0.000339,120]
[419261167,1775073547309,-494.0,0.000339,120]
[419261168,1775073547340,-162.48,0.0003391,60]
[419261169,1775073547496,-174.58309581,0.0003391,60]
[419261170,1775073547530,-404.43,0.0003391,60]
[419261171,1775073547560,-1660.0,0.0003391,60]
[419261172,1775073547589,-292.0,0.0003391,60]
[419261173,1775073547618,-162.48,0.0003401,60]
[419261174,1775073547648,-404.43,0.0003401,60]
[419261175,1775073547679,-5570.73963096,0.0003407,114]
[419261176,1775073547706,-1000.0,0.000341,120]
[419261177,1775073547735,-279.0,0.000341,120]
[419261178,1775073547763,-162.48,0.0003411,60]
[419261179,1775073547792,-404.43,0.0003411,60]
[419261180,1775073547822,-417.0,0.0003411,60]
[419261181,1775073547850,-327.0,0.0003411,60]
[419261182,1775073547882,-1044.05,0.00034125,120]
[419261183,1775073547913,-158.0,0.00034172,30]
[419261184,1775073547944,-157.0,0.00034172,30]
[419261185,1775073547975,-155.0,0.0003418,30]
[419261186,1775073548006,-243.0,0.0003418,30]
[419261187,1775073548036,-152.0,0.0003418,30]
[419261188,1775073548065,-162.48,0.0003421,60]
[419261189,1775073548098,-404.43,0.0003421,60]
[419261190,1775073548129,-1332.0,0.0003421,60]
[419261191,1775073548160,-206.0,0.0003421,60]
[419261192,1775073548192,-162.48,0.0003431,60]
[419261193,1775073548223,-404.43,0.0003431,60]
[419261194,1775073548251,-1000.0,0.000344,120]
[419261195,1775073548279,-1675.0,0.000344,120]
[419261196,1775073548308,-608.0,0.000344,120]
[419261197,1775073548335,-162.48,0.0003441,60]
[419261198,1775073548365,-404.43,0.0003441,60]
[419261199,1775073548393,-267.6188,0.000345,30]
[419261200,1775073548419,-227.556202,0.000345,30]
[419261201,1775073548448,-2025.37,0.000345,30]
[419261202,1775073548475,-162.48,0.0003451,60]